fUSD/lending_fUSD_20260606
["ID","MTS","AMOUNT","RATE_DAILY","PERIOD"]
[424240642,1780686642000,-25000.0,0.00014786,3]
[424240648,1780686642000,-500.0,0.00014799,2]
[424240638,1780686642000,-150.0,0.0001475,2]
[424240667,1780686642000,-500.0,0.00014799,2]
[424240649,1780686642000,-500.0,0.00014799,2]
[424240643,1780686642000,-150.0,0.00014789,2]
[424240660,1780686642000,-1000.0,0.00014799,2]
[424240663,1780686642000,-500.0,0.00014799,2]
[424240662,1780686642000,-250.0,0.00014799,2]
[424240665,1780686642000,-485.98003348,0.00014799,2]
[424240652,1780686642000,-500.0,0.00014799,2]
[424240668,1780686642000,-500.0,0.00014799,2]
[424240666,1780686642000,-500.0,0.00014799,2]
[424240651,1780686642000,-500.0,0.00014799,2]
[424240685,1780686643000,-471.92827469,0.000148,2]
[424240684,1780686643000,-1382.28669231,0.000148,2]
[424240683,1780686643000,-2151.04370915,0.000148,2]
[424240687,1780686643000,-561.79570537,0.000148,2]
[424240689,1780686643000,-698824.4026298,0.000148,2]
[424240688,1780686643000,-26905.18241455,0.000148,2]
[424240691,1780686643000,-529.75209691,0.000148,2]
[424240686,1780686643000,-2458.24274886,0.000148,2]
[424240690,1780686643000,-31019.4050903,0.000148,2]
[424240727,1780686645000,-2643.84065279,0.000148,2]
[424240721,1780686645000,-919.90800189,0.000148,2]
[424240725,1780686645000,-4639.70886207,0.000148,2]
[424240719,1780686645000,-376.57350509,0.00013969,2]
[424240723,1780686645000,-5109.79113818,0.000148,2]
[424240728,1780686646000,-8095.41175846,0.000148,2]
[424240729,1780686646000,-356.572,0.000148,2]
[424240732,1780686666000,600.0,0.00030107,120]
[424240733,1780686963000,152.0,0.00030127,120]
[424240734,1780687282000,3269.24049499,0.00028,120]
[424240735,1780687331000,544.50797856,0.000107,2]
[424240736,1780687340000,500.0,0.00030137,120]
[424240737,1780687358000,500.0,0.00030137,120]
[424240738,1780687386000,500.0,0.00030137,120]
[424240739,1780687397000,500.0,0.00030137,120]
[424240742,1780687439000,379.5,0.00030137,120]
[424240761,1780687741000,2000.0,0.00030136,120]
[424240762,1780687761000,152.0,0.00030127,120]
[424240780,1780687831000,-463.20880651,0.00010643,2]
[424240786,1780687831000,-500.0,0.00010698,2]
[424240785,1780687831000,-500.0,0.00010698,2]
[424240781,1780687831000,-2572.16954849,0.00010643,2]
[424240784,1780687831000,-245.37305707,0.00010698,2]
[424240782,1780687831000,-150.0,0.00010697,2]
[424240783,1780687831000,-500.0,0.00010698,2]
[424240787,1780687831000,-462.48833124,0.00010698,2]
[424240788,1780687831000,-37.51166876,0.00010698,2]
[424240789,1780687831000,-500.0,0.00010698,2]
[424240791,1780687831000,-500.0,0.00010698,2]
[424240790,1780687831000,-500.0,0.00010698,2]
[424240793,1780687831000,-500.0,0.00010698,2]
[424240799,1780687831000,-500.0,0.00010698,2]
[424240794,1780687831000,-500.0,0.00010698,2]
[424240792,1780687831000,-227.54827141,0.00010698,2]
[424240807,1780687831000,-373.67808878,0.00010699,2]
[424240803,1780687831000,-500.0,0.00010698,2]
[424240806,1780687831000,-246.00842312,0.00010699,2]
[424240805,1780687831000,-500.0,0.00010698,2]
[424240798,1780687831000,-500.0,0.00010698,2]
[424240804,1780687831000,-500.0,0.00010698,2]
[424240802,1780687831000,-500.0,0.00010698,2]
[424240797,1780687831000,-500.0,0.00010698,2]
[424240795,1780687831000,-500.0,0.00010698,2]
[424240796,1780687831000,-500.0,0.00010698,2]
[424240801,1780687831000,-500.0,0.00010698,2]
[424240800,1780687831000,-500.0,0.00010698,2]
[424240857,1780687832000,-419.79953603,0.00013699,2]
[424240840,1780687832000,-928.15,0.00013169,2]
[424240846,1780687832000,-500.0,0.00013288,2]
[424240852,1780687832000,-3368.74,0.00013608,2]
[424240860,1780687832000,-500.0,0.00013699,2]
[424240861,1780687832000,-500.0,0.00013699,2]
[424240864,1780687832000,-1195.0,0.0001371,2]
[424240863,1780687832000,-500.0,0.00013699,2]
[424240853,1780687832000,-434.88,0.00013608,2]
[424240851,1780687832000,-397.66146579,0.00013541,2]
[424240862,1780687832000,-500.0,0.00013699,2]
[424240854,1780687832000,-166.68,0.00013671,2]
[424240868,1780687832000,-526.49,0.00013985,2]
[424240856,1780687832000,-500.0,0.00013699,2]
[424240859,1780687832000,-500.0,0.00013699,2]
[424240858,1780687832000,-500.0,0.00013699,2]
[424240865,1780687832000,-166.66,0.00013836,2]
[424240850,1780687832000,-160.8990014,0.00013541,2]
[424240867,1780687832000,-166.66,0.00013973,2]
[424240870,1780687832000,-442.01797472,0.00014,2]
[424240869,1780687832000,-1325.55,0.00013985,2]
[424240866,1780687832000,-1000.0,0.00013924,2]
[424240872,1780687832000,-342.25263061,0.0001403,2]
[424240874,1780687832000,-451.13412869,0.0001403,2]
[424240871,1780687832000,-250.0,0.00014,2]
[424240855,1780687832000,-166.66,0.00013699,2]
[424240845,1780687832000,-334.37,0.0001327,2]
[424240839,1780687832000,-1000.0,0.00013074,2]
[424240842,1780687832000,-732.38,0.00013227,2]
[424240873,1780687832000,-394.7423626,0.0001403,2]
[424240808,1780687832000,-369.04203499,0.000107,2]
[424240814,1780687832000,-500.0,0.0001285,2]
[424240810,1780687832000,-60281.9989862,0.000107,2]
[424240809,1780687832000,-6294.37177704,0.000107,2]
[424240811,1780687832000,-7768.30230802,0.000107,2]
[424240816,1780687832000,-433.0,0.00012868,2]
[424240813,1780687832000,-255.0,0.00011735,2]
[424240818,1780687832000,-215.77576141,0.00012949,2]
[424240820,1780687832000,-160.0,0.00013003,2]
[424240826,1780687832000,-300.89193057,0.00013003,2]
[424240822,1780687832000,-2056.04,0.00013003,2]
[424240848,1780687832000,-451.0,0.00013517,2]
[424240824,1780687832000,-150.99,0.00013003,2]
[424240831,1780687832000,-14010.14,0.00013003,2]
[424240834,1780687832000,-341.52639842,0.00013006,2]
[424240835,1780687832000,-1103.97,0.00013006,2]
[424240836,1780687832000,-353.69,0.00013006,2]
[424240832,1780687832000,-5714.18,0.00013003,2]
[424240837,1780687832000,-1195.0,0.00013057,2]
[424240838,1780687832000,-2000.0,0.00013061,2]
[424240841,1780687832000,-233.63,0.00013208,2]
[424240847,1780687832000,-1195.0,0.00013384,2]
[424240844,1780687832000,-150.0,0.00013237,2]
[424240843,1780687832000,-1250.83,0.00013234,2]
[424240849,1780687832000,-446.0,0.00013517,2]
[424240829,1780687832000,-116.44806943,0.00013003,2]
[424240877,1780687832000,-166.66,0.0001411,2]
[424240833,1780687832000,-13845.2,0.00013003,2]
[424240876,1780687832000,-300.0,0.000141,5]
[424240908,1780687832000,-2500.0,0.00014599,2]
[424240910,1780687832000,-2314.40346556,0.000146,2]
[424240916,1780687832000,-2662.01791371,0.00014666,2]
[424240911,1780687832000,-300.0,0.000146,5]
[424240915,1780687832000,-2662.01791371,0.00014644,2]
[424240918,1780687832000,-3615.89201115,0.00014678,2]
[424240912,1780687832000,-2662.01791371,0.00014622,2]
[424240913,1780687832000,-3615.89201115,0.00014622,2]
[424240914,1780687832000,-2314.40346549,0.00014643,2]
[424240930,1780687832000,-500.0,0.00014698,2]
[424240933,1780687832000,-500.0,0.00014698,2]
[424240920,1780687832000,-2662.01791371,0.00014688,2]
[424240909,1780687832000,-182.31580194,0.000146,2]
[424240931,1780687832000,-500.0,0.00014698,2]
[424240925,1780687832000,-1033.42824635,0.00014698,5]
[424240923,1780687832000,-500.0,0.00014698,2]
[424240919,1780687832000,-2314.40346549,0.00014686,2]
[424240924,1780687832000,-500.0,0.00014698,2]
[424240922,1780687832000,-2000.0,0.00014694,2]
[424240927,1780687832000,-500.0,0.00014698,2]
[424240926,1780687832000,-1033.42824635,0.00014698,5]
[424240929,1780687832000,-500.0,0.00014698,2]
[424240928,1780687832000,-500.0,0.00014698,2]
[424240932,1780687832000,-500.0,0.00014698,2]
[424240934,1780687832000,-612.41625126,0.00014698,2]
[424240878,1780687832000,-152.0,0.00014117,2]
[424240921,1780687832000,-161.03491528,0.00014689,2]
[424240907,1780687832000,-4000.0,0.00014599,2]
[424240917,1780687832000,-350.0,0.00014672,2]
[424240902,1780687832000,-169.599921,0.00014533,2]
[424240875,1780687832000,-1195.0,0.00014036,2]
[424240880,1780687832000,-279.1725733,0.00014137,2]
[424240879,1780687832000,-736.0,0.0001412,2]
[424240883,1780687832000,-166.66,0.00014247,2]
[424240881,1780687832000,-186.47954845,0.00014184,2]
[424240904,1780687832000,-926.87,0.00014547,2]
[424240882,1780687832000,-600.0,0.000142,5]
[424240886,1780687832000,-1000.0,0.000143,5]
[424240885,1780687832000,-1040.39,0.000143,2]
[424240887,1780687832000,-350.0,0.00014311,2]
[424240888,1780687832000,-1195.0,0.00014363,2]
[424240892,1780687832000,-1300.0,0.000144,5]
[424240889,1780687832000,-392.56,0.00014374,2]
[424240890,1780687832000,-166.66,0.00014384,2]
[424240884,1780687832000,-253.26,0.000143,2]
[424240893,1780687832000,-261.7,0.00014403,2]
[424240894,1780687832000,-1210.62,0.00014433,2]
[424240900,1780687832000,-224.49,0.00014522,2]
[424240903,1780687832000,-350.0,0.00014538,2]
[424240899,1780687832000,-2000.0,0.00014522,2]
[424240905,1780687832000,-3615.89201115,0.00014567,2]
[424240898,1780687832000,-3615.89201115,0.00014511,2]
[424240901,1780687832000,-214.856361,0.00014524,2]
[424240895,1780687832000,-3615.89201115,0.00014456,2]
[424240906,1780687832000,-2000.0,0.00014599,2]
[424240896,1780687832000,-2000.0,0.000145,2]
[424240891,1780687832000,-3615.89201122,0.000144,2]
[424240897,1780687832000,-1700.0,0.000145,5]
[424240951,1780687833000,-500.0,0.00014698,2]
[424240947,1780687833000,-352.08,0.00014698,2]
[424240946,1780687833000,-500.0,0.00014698,2]
[424240954,1780687833000,-500.0,0.00014698,2]
[424240949,1780687833000,-500.0,0.00014698,2]
[424240945,1780687833000,-547.55,0.00014698,2]
[424240948,1780687833000,-500.0,0.00014698,2]
[424240942,1780687833000,-500.0,0.00014698,2]
[424240935,1780687833000,-500.0,0.00014698,2]
[424240939,1780687833000,-500.0,0.00014698,2]
[424240943,1780687833000,-182.69,0.00014698,2]
[424240940,1780687833000,-500.0,0.00014698,2]
[424240937,1780687833000,-500.0,0.00014698,2]
[424240938,1780687833000,-500.0,0.00014698,2]
[424240936,1780687833000,-500.0,0.00014698,2]
[424240950,1780687833000,-298.22,0.00014698,2]
[424240944,1780687833000,-500.0,0.00014698,2]
[424240953,1780687833000,-500.0,0.00014698,2]
[424240941,1780687833000,-500.0,0.00014698,2]
[424240955,1780687833000,-500.0,0.00014698,2]
[424240952,1780687833000,-500.0,0.00014698,2]
[424240970,1780687833000,-500.0,0.00014698,2]
[424240969,1780687833000,-496.36,0.00014698,2]
[424240973,1780687833000,-82440.93133196,0.000147,2]
[424240972,1780687833000,-33256.6326,0.000147,2]
[424240971,1780687833000,-500.0,0.00014698,2]
[424240965,1780687833000,-500.0,0.00014698,2]
[424240966,1780687833000,-500.0,0.00014698,2]
[424240957,1780687833000,-500.0,0.00014698,2]
[424240968,1780687833000,-500.0,0.00014698,2]
[424240960,1780687833000,-500.0,0.00014698,2]
[424240961,1780687833000,-500.0,0.00014698,2]
[424240962,1780687833000,-1000.0,0.00014698,2]
[424240958,1780687833000,-500.0,0.00014698,2]
[424240963,1780687833000,-1000.0,0.00014698,2]
[424240967,1780687833000,-500.0,0.00014698,2]
[424240959,1780687833000,-500.0,0.00014698,2]
[424240964,1780687833000,-250.0,0.00014698,2]
[424240956,1780687833000,-500.0,0.00014698,2]
[424240974,1780687834000,-98289.39616821,0.000147,2]
[424240977,1780687834000,-260.99829995,0.000147,2]
[424240976,1780687834000,-153839.36476717,0.000147,2]
[424240975,1780687834000,-140131.20351607,0.000147,2]
[424240992,1780687837000,-65.11772295,0.000146,2]
[424240991,1780687837000,-200.0,0.00013699,2]
[424241043,1780687840000,-8403.10470548,0.000146,2]
[424241042,1780687840000,-1531.77757157,0.000146,2]
[424241045,1780687840000,-1160.18,0.00014698,2]
[424241048,1780687840000,-17254.47335671,0.000147,2]
[424241046,1780687840000,-342.68982899,0.00014698,2]
[424241047,1780687840000,-817.49017101,0.00014698,2]
[424241044,1780687840000,-1160.18,0.00014698,2]
[424241054,1780687842000,-1036.65328089,0.00014698,2]
[424241087,1780687846000,-579.56824072,0.00014699,2]
[424241074,1780687846000,-123.52671911,0.00014698,2]
[424241075,1780687846000,-1160.18,0.00014698,2]
[424241083,1780687846000,-1160.18,0.00014699,2]
[424241084,1780687846000,-1160.18,0.00014699,2]
[424241086,1780687846000,-1160.18,0.00014699,2]
[424241077,1780687846000,-1160.18,0.00014698,2]
[424241076,1780687846000,-1160.18,0.00014698,2]
[424241085,1780687846000,-1160.18,0.00014699,2]
[424241078,1780687846000,-1160.18,0.00014698,2]
[424241081,1780687846000,-1160.18,0.00014699,2]
[424241082,1780687846000,-1160.18,0.00014699,2]
[424241080,1780687846000,-1160.18,0.00014698,2]
[424241079,1780687846000,-1160.18,0.00014698,2]
[424241089,1780688156000,152.0,0.00030127,120]
[424241090,1780688177000,152.0,0.00030127,120]
[424241092,1780688476000,152.0,0.00030127,120]
[424241096,1780688942000,2000.0,0.00030135,120]
[424241097,1780688962000,845.7788464,0.00030137,120]
[424241130,1780689032000,-166.7,0.00013585,2]
[424241131,1780689032000,-150.0,0.00013654,2]
[424241132,1780689032000,-150.0,0.00013696,2]
[424241128,1780689032000,-150.0,0.00013488,2]
[424241126,1780689032000,-150.0,0.00013488,2]
[424241127,1780689032000,-150.0,0.00013488,2]
[424241137,1780689032000,-158.26626476,0.00013696,2]
[424241138,1780689032000,-605.40882317,0.00013696,2]
[424241129,1780689032000,-500.0,0.00013534,2]
[424241124,1780689032000,-9999.99,0.00013383,2]
[424241143,1780689032000,-298.34074355,0.00013696,2]
[424241153,1780689032000,-150.0,0.00013737,2]
[424241141,1780689032000,-500.0,0.00013696,2]
[424241145,1780689032000,-166.66,0.00013699,2]
[424241151,1780689032000,-284.27,0.00013718,2]
[424241149,1780689032000,-435.53328178,0.00013699,2]
[424241165,1780689032000,-166.66,0.00013973,2]
[424241160,1780689032000,-272.42392982,0.00013836,2]
[424241157,1780689032000,-166.66,0.00013836,2]
[424241155,1780689032000,-150.0,0.00013821,2]
[424241161,1780689032000,-150.0,0.00013862,2]
[424241163,1780689032000,-166.66,0.00013869,2]
[424241135,1780689032000,-436.65690536,0.00013696,2]
[424241147,1780689032000,-200.0,0.00013699,2]
[424241133,1780689032000,-298.99719239,0.00013696,2]
[424241110,1780689032000,-500.0,0.00013257,2]
[424241119,1780689032000,-3631.07,0.00013311,2]
[424241167,1780689032000,-150.0,0.00013987,2]
[424241099,1780689032000,-369.82655648,0.00010771,2]
[424241102,1780689032000,-1042.35,0.00013155,2]
[424241101,1780689032000,-160.0,0.00010809,2]
[424241107,1780689032000,-222.75482714,0.00013257,2]
[424241109,1780689032000,-500.0,0.00013257,2]
[424241108,1780689032000,-500.0,0.00013257,2]
[424241104,1780689032000,-2643.42,0.00013177,2]
[424241103,1780689032000,-293.63,0.00013176,2]
[424241106,1780689032000,-500.0,0.00013257,2]
[424241105,1780689032000,-500.0,0.00013183,2]
[424241125,1780689032000,-928.15,0.00013413,2]
[424241100,1780689032000,-215.77576141,0.00010802,2]
[424241113,1780689032000,-500.0,0.00013257,2]
[424241123,1780689032000,-24999.99,0.00013383,2]
[424241117,1780689032000,-293.14,0.00013311,2]
[424241112,1780689032000,-500.0,0.00013257,2]
[424241116,1780689032000,-299.99,0.00013264,2]
[424241121,1780689032000,-999.99,0.00013311,2]
[424241120,1780689032000,-9999.99,0.00013311,2]
[424241115,1780689032000,-150.0,0.00013264,2]
[424241114,1780689032000,-2000.0,0.00013258,2]
[424241118,1780689032000,-150.99,0.00013311,2]
[424241122,1780689032000,-284.27,0.00013383,2]
[424241111,1780689032000,-500.0,0.00013257,2]
[424241173,1780689032000,-200.00373781,0.00014084,2]
[424241249,1780689032000,-150.0,0.00014487,2]
[424241171,1780689032000,-156.587,0.00014084,2]
[424241229,1780689032000,-604.6433341,0.00014167,2]
[424241228,1780689032000,-590.0,0.00014167,2]
[424241233,1780689032000,-166.66,0.00014247,2]
[424241232,1780689032000,-150.0,0.00014237,2]
[424241231,1780689032000,-150.0,0.00014237,2]
[424241230,1780689032000,-1100.0,0.000142,5]
[424241234,1780689032000,-500.0,0.00014252,2]
[424241235,1780689032000,-500.0,0.00014252,2]
[424241236,1780689032000,-500.0,0.00014252,2]
[424241238,1780689032000,-350.0,0.00014266,2]
[424241244,1780689032000,-4178.2982,0.000144,2]
[424241227,1780689032000,-590.0,0.00014167,2]
[424241175,1780689032000,-500.0,0.000141,5]
[424241243,1780689032000,-284.27,0.00014387,2]
[424241242,1780689032000,-166.66,0.00014384,2]
[424241241,1780689032000,-350.0,0.0001435,2]
[424241245,1780689032000,-5282.8867,0.000144,2]
[424241237,1780689032000,-412.34598771,0.00014252,2]
[424241246,1780689032000,-2200.0,0.000144,5]
[424241247,1780689032000,-166.66,0.00014441,2]
[424241252,1780689032000,-4068.18316086,0.00014497,2]
[424241248,1780689032000,-150.0,0.00014487,2]
[424241250,1780689032000,-4000.0,0.00014497,2]
[424241251,1780689032000,-2500.0,0.00014497,2]
[424241239,1780689032000,-1600.0,0.000143,5]
[424241226,1780689032000,-590.0,0.00014167,2]
[424241240,1780689032000,-150.0,0.0001432,2]
[424241224,1780689032000,-590.0,0.00014167,2]
[424241222,1780689032000,-590.0,0.00014167,2]
[424241166,1780689032000,-150.0,0.00013987,2]
[424241177,1780689032000,-166.66,0.0001411,2]
[424241168,1780689032000,-284.27,0.00014052,2]
[424241183,1780689032000,-150.0,0.00014167,2]
[424241188,1780689032000,-590.0,0.00014167,2]
[424241190,1780689032000,-590.0,0.00014167,2]
[424241169,1780689032000,-151.0,0.00014084,2]
[424241186,1780689032000,-590.0,0.00014167,2]
[424241200,1780689032000,-590.0,0.00014167,2]
[424241192,1780689032000,-590.0,0.00014167,2]
[424241194,1780689032000,-590.0,0.00014167,2]
[424241180,1780689032000,-150.0,0.00014154,2]
[424241202,1780689032000,-590.0,0.00014167,2]
[424241196,1780689032000,-590.0,0.00014167,2]
[424241221,1780689032000,-590.0,0.00014167,2]
[424241219,1780689032000,-590.0,0.00014167,2]
[424241215,1780689032000,-590.0,0.00014167,2]
[424241198,1780689032000,-590.0,0.00014167,2]
[424241217,1780689032000,-590.0,0.00014167,2]
[424241208,1780689032000,-590.0,0.00014167,2]
[424241211,1780689032000,-590.0,0.00014167,2]
[424241207,1780689032000,-590.0,0.00014167,2]
[424241205,1780689032000,-590.0,0.00014167,2]
[424241213,1780689032000,-590.0,0.00014167,2]
[424241266,1780689033000,-1024.96605997,0.00014596,5]
[424241271,1780689033000,-500.0,0.00014596,2]
[424241260,1780689033000,-201.980152,0.00014502,2]
[424241268,1780689033000,-1024.96605997,0.00014596,5]
[424241281,1780689033000,-250.0,0.00014596,2]
[424241273,1780689033000,-500.0,0.00014596,2]
[424241272,1780689033000,-500.0,0.00014596,2]
[424241274,1780689033000,-500.0,0.00014596,2]
[424241284,1780689033000,-558.81,0.00014596,2]
[424241282,1780689033000,-431.6,0.00014596,2]
[424241275,1780689033000,-500.0,0.00014596,2]
[424241283,1780689033000,-558.81,0.00014596,2]
[424241267,1780689033000,-1024.96605997,0.00014596,5]
[424241257,1780689033000,-182.31580193,0.000145,2]
[424241269,1780689033000,-500.0,0.00014596,2]
[424241262,1780689033000,-4068.18316085,0.00014551,2]
[424241263,1780689033000,-350.0,0.00014572,2]
[424241264,1780689033000,-4068.18316085,0.00014579,2]
[424241265,1780689033000,-161.03491528,0.00014587,2]
[424241261,1780689033000,-4068.18316085,0.00014524,2]
[424241259,1780689033000,-201.980152,0.00014502,2]
[424241254,1780689033000,-33256.6326,0.000145,2]
[424241255,1780689033000,-2000.0,0.000145,2]
[424241256,1780689033000,-197.87818747,0.000145,2]
[424241253,1780689033000,-500.0,0.00014499,2]
[424241277,1780689033000,-500.0,0.00014596,2]
[424241270,1780689033000,-500.0,0.00014596,2]
[424241276,1780689033000,-500.0,0.00014596,2]
[424241258,1780689033000,-2700.0,0.000145,5]
[424241280,1780689033000,-1000.0,0.00014596,2]
[424241311,1780689033000,-614.48216118,0.00014597,2]
[424241310,1780689033000,-3809.40052919,0.00014597,2]
[424241307,1780689033000,-4632.34278382,0.00014597,2]
[424241309,1780689033000,-340.48204018,0.00014597,2]
[424241306,1780689033000,-8975.64954522,0.00014597,2]
[424241305,1780689033000,-37178.28773192,0.00014597,2]
[424241303,1780689033000,-1299.03109547,0.00014597,2]
[424241302,1780689033000,-446.36039148,0.00014597,2]
[424241304,1780689033000,-9400.0,0.00014597,2]
[424241301,1780689033000,-23954.18710174,0.00014597,2]
[424241300,1780689033000,-186266.88055467,0.00014597,2]
[424241298,1780689033000,-558.81,0.00014596,2]
[424241299,1780689033000,-558.81,0.00014596,2]
[424241308,1780689033000,-858.64724402,0.00014597,2]
[424241297,1780689033000,-558.81,0.00014596,2]
[424241296,1780689033000,-558.81,0.00014596,2]
[424241278,1780689033000,-500.0,0.00014596,2]
[424241285,1780689033000,-558.81,0.00014596,2]
[424241290,1780689033000,-558.81,0.00014596,2]
[424241288,1780689033000,-558.81,0.00014596,2]
[424241289,1780689033000,-558.81,0.00014596,2]
[424241279,1780689033000,-1000.0,0.00014596,2]
[424241287,1780689033000,-558.81,0.00014596,2]
[424241286,1780689033000,-558.81,0.00014596,2]
[424241292,1780689033000,-558.81,0.00014596,2]
[424241293,1780689033000,-558.81,0.00014596,2]
[424241291,1780689033000,-558.81,0.00014596,2]
[424241294,1780689033000,-558.81,0.00014596,2]
[424241295,1780689033000,-558.81,0.00014596,2]
[424241324,1780689041000,-1179.57723808,0.00014497,2]
[424241325,1780689041000,-720.38250571,0.00014497,2]
[424241326,1780689041000,-589.88465799,0.00014497,2]
[424241327,1780689041000,-1510.15559822,0.00014497,2]
[424241331,1780689041000,-56852.54609317,0.00014597,2]
[424241332,1780689041000,-31536.0,0.00014597,2]
[424241329,1780689041000,-169.688227,0.00014502,2]
[424241354,1780689043000,-646.56909298,0.00014597,2]
[424241353,1780689043000,-1260.20536076,0.00014597,2]
[424241352,1780689043000,-559.74912,0.00014597,2]
[424241355,1780689043000,-164.4019739,0.00014597,2]
[424241363,1780689046000,-6222.6,0.00014597,2]
[424241362,1780689046000,-237649.97509062,0.00014597,2]
[424241361,1780689046000,-1115.40994501,0.00014597,2]
[424241369,1780689083000,-595.6827887,0.00014152,2]
[424241368,1780689083000,-2500.0,0.00014152,2]
[424241367,1780689083000,-300.0,0.00014152,2]
[424241366,1780689083000,-150.0,0.00014151,2]
[424241365,1780689083000,-151.0,0.00014149,2]
[424241370,1780689101000,276.4832043,0.00013257,2]
[424241371,1780689104000,413.63942524,0.00013176,2]
[424241372,1780689131000,75073.19458176,0.00013599,2]
[424241377,1780689373000,152.0,0.00030127,120]
[424241379,1780689693000,152.0,0.00030121,120]
[424241380,1780689698000,90000.0,0.0003013,120]
[424241383,1780689944000,897.58,0.00030082,120]
[424241387,1780690141000,2000.0,0.00030136,120]
[424241411,1780690232000,-500.0,0.00012141,2]
[424241416,1780690232000,-500.0,0.00012141,2]
[424241417,1780690232000,-500.0,0.00012141,2]
[424241415,1780690232000,-500.0,0.00012141,2]
[424241425,1780690232000,-500.0,0.00012141,2]
[424241420,1780690232000,-500.0,0.00012141,2]
[424241423,1780690232000,-500.0,0.00012141,2]
[424241424,1780690232000,-500.0,0.00012141,2]
[424241422,1780690232000,-500.0,0.00012141,2]
[424241419,1780690232000,-500.0,0.00012141,2]
[424241418,1780690232000,-500.0,0.00012141,2]
[424241426,1780690232000,-500.0,0.00012141,2]
[424241427,1780690232000,-5684.52906978,0.00012143,2]
[424241428,1780690232000,-381.5,0.00012149,2]
[424241435,1780690232000,-208.6,0.00012301,2]
[424241429,1780690232000,-2753.28,0.00012301,2]
[424241430,1780690232000,-9999.99,0.00012301,2]
[424241432,1780690232000,-1595.54,0.00012301,2]
[424241421,1780690232000,-500.0,0.00012141,2]
[424241408,1780690232000,-596.85652288,0.00012141,2]
[424241410,1780690232000,-500.0,0.00012141,2]
[424241409,1780690232000,-500.0,0.00012141,2]
[424241433,1780690232000,-3047.75,0.00012301,2]
[424241393,1780690232000,-370.11519892,0.0001202,2]
[424241394,1780690232000,-685.81,0.0001203,2]
[424241396,1780690232000,-696.11,0.00012098,2]
[424241392,1780690232000,-728.602277,0.00011959,2]
[424241397,1780690232000,-150.0,0.0001214,2]
[424241400,1780690232000,-209.29803467,0.00012141,2]
[424241395,1780690232000,-2926.93,0.0001205,2]
[424241399,1780690232000,-423.78617622,0.00012141,2]
[424241401,1780690232000,-558.83852048,0.00012141,2]
[424241398,1780690232000,-305.65983375,0.00012141,2]
[424241403,1780690232000,-500.0,0.00012141,2]
[424241414,1780690232000,-500.0,0.00012141,2]
[424241413,1780690232000,-500.0,0.00012141,2]
[424241404,1780690232000,-500.0,0.00012141,2]
[424241402,1780690232000,-500.0,0.00012141,2]
[424241406,1780690232000,-500.0,0.00012141,2]
[424241405,1780690232000,-500.0,0.00012141,2]
[424241407,1780690232000,-500.0,0.00012141,2]
[424241412,1780690232000,-500.0,0.00012141,2]
[424241436,1780690232000,-897.58,0.00012329,2]
[424241447,1780690232000,-214.28,0.00012703,2]
[424241431,1780690232000,-150.99,0.00012301,2]
[424241458,1780690232000,-255.0,0.0001322,2]
[424241461,1780690232000,-23927.49931716,0.00013479,2]
[424241459,1780690232000,-381.5,0.00013364,2]